Cogmind - Beta 13 @@@ ROGUE MODE // 2024.03.15 @ 18:37:26 Player: opdo Result: Self-destructed Performance ------------- Evolutions (1) 500 Regions Visited (2) 400 Robots Destroyed (17) 85 Value Destroyed (387) 387 Prototype IDs (2) 40 Alien Tech Used (0) 0 Bonus (0) 0 TOTAL SCORE: 1412 Bonus ------- None Cogmind --------- Core Integrity 91/400 Matter 271/300 Energy 5/100 System Corruption 1% Temperature Critical (603) Movement Core (50) Location -9/Materials Parts ------- > --- POWER (1) -------- (None) > --- PROPULSION (3) --- (None) > --- UTILITY (3) ------ Transport Network Coupler > --- WEAPON (2) ------- (None) > --- INVENTORY (5) ---- Aluminum Leg Aluminum Leg Small Laser Peak State ------------ > --- POWER ------------ Improved Ion Engine > --- PROPULSION ------- Flight Unit Flight Unit Improved Flight Unit > --- UTILITY ---------- Small Storage Unit Transport Network Coupler > --- WEAPON ----------- Small Laser Advanced Beam Cannon > --- INVENTORY -------- Aluminum Leg Aluminum Leg Small Laser Advanced Beam Cannon Datajack [Rating: 13] Favorites ----------- Power Light Ion Engine Engine Light Ion Engine Propulsion Flight Unit Leg Aluminum Leg Flight Unit Flight Unit Utility Small Storage Unit Storage Small Storage Unit Processor Transport Network Coupler Weapon Assault Rifle Energy Gun Small Laser Energy Cannon Advanced Beam Cannon Ballistic Gun Assault Rifle Special Melee Weapon Datajack Build | -11 -10 -9 ------- Run | Yrd Mat Mat Slots Evolved 2 | . . 2 Power . | . . . Propulsion 1 | . . 1 Utility 1 | . . 1 Weapon . | . . . Parts Attached 20 | 5 7 8 Power 3 | 1 1 1 Engine 3 | 1 1 1 Core . | . . . Reactor . | . . . Propulsion 6 | 2 3 1 Treads . | . . . Leg 2 | 2 . . Wheel . | . . . Hover . | . . . Flight 4 | . 3 1 Utility 2 | 1 . 1 Device . | . . . Storage 1 | 1 . . Processor 1 | . . 1 Hackware . | . . . Protection . | . . . Artifact . | . . . Weapon 9 | 1 3 5 Energy Gun 3 | 1 1 1 Energy Cannon 3 | . . 3 Ballistic Gun 1 | . 1 . Ballistic Cannon . | . . . Launcher . | . . . Special Weapon . | . . . Impact Weapon . | . . . Slashing Weapon . | . . . Piercing Weapon . | . . . Special Melee Weapon 2 | . 1 1 Unidentified Prototypes 2 | . . 2 Parts Lost 12 | . 1 11 Power 3 | . 1 2 Propulsion 3 | . . 3 Utility 1 | . . 1 Weapon 5 | . . 5 Highest Loss Streak 10 | . 1 10 To Critical Strikes . | . . . Average Slot Usage (%) 78 | . 82 74 Engine 11 | . 13 9 Leg 8 | . 18 . Flight 18 | . 9 25 Storage 12 | . 14 11 Processor 3 | . . 6 Energy Gun 11 | . 14 9 Energy Cannon 1 | . . 2 Ballistic Gun 9 | . 9 9 Special Melee Weapon 1 | . 3 . Naked Turns . | . . . Heaviest Build 18 | 10 11 18 Greatest Support 20 | 20 20 13 Greatest Overweight (x) 2 | 1 2 2 Average Overweight (x) . | . . . Largest Inventory Capacity 8 | 8 8 8 Average Capacity 7 | 7 8 7 Most Carried 7 | 3 4 7 Average Carried 3 | 1 2 5 Final Capacity 8 | 8 8 5 Final Carried 4 | 2 4 3 Class Distribution -------------------- 70% | Mutant 29% | Scavenger-Mutant Dominant Class ---------------- Mutant | -10/Materials Scavenger-Mutant | -9/Materials Resources | -11 -10 -9 ----------- Run | Yrd Mat Mat Matter Collected 445 | 165 213 67 Remotely . | . . . Salvage Created 712 | . 389 323 Parts 44 | . 22 22 Haulers Intercepted 1 | . . 1 Recyclers Shooed . | . . . Parts Field Recycled . | . . . Retrieved Matter . | . . . Parts Self-Destructed . | . . . Prevented . | . . . Kills | -11 -10 -9 ------- Run | Yrd Mat Mat Combat Hostiles Destroyed 12 | . 7 5 Guns 10 | . 7 3 Cannons 2 | . . 2 Classes Destroyed 6 | . 3 3 Worker 2 | . . 2 Hauler 1 | . . 1 Recycler 2 | . 2 . Swarmer 3 | . 3 . Grunt 7 | . 4 3 Sentry 2 | . . 2 Best Kill Streak 9 | . 9 5 Combat Bots Only 7 | . 7 3 Max Kills in Single Turn 1 | . 1 1 Gunslinging . | . . . Exploded . | . . . Melee . | . . . Uniques/NPCs Destroyed . | . . . Combat | -11 -10 -9 -------- Run | Yrd Mat Mat Hostile Shots Fired 121 | . 33 88 Missed 26 | . 9 17 Damage Taken 1261 | . 250 1011 Core 396 | . 87 309 Absorbed by Shields . | . . . Core Remaining (%) 82 | 100 65 . Volleys Fired 60 | . 24 36 Largest 2 | . 2 2 Hottest 136 | . 60 136 Shots Fired 111 | . 45 66 Gun 94 | . 45 49 Cannon 17 | . . 17 Launcher . | . . . Special . | . . . Kinetic 44 | . 21 23 Thermal 43 | . . 43 Explosive . | . . . Electromagnetic 24 | . 24 . Robot Hit Streak 12 | . 12 8 Robot Miss Streak 7 | . 7 3 Penetration Max . | . . . Secondary Targets 1 | . . 1 Max Gunslinging Chain 1 | . . 1 Shots Hit Robots 69 | . 25 44 Core Hits 29 | . 15 14 Critical Kills . | . . . Critical Parts Destroyed . | . . . Critical Strikes . | . . . Melee Attacks . | . . . Impact . | . . . Slashing . | . . . Piercing . | . . . Sneak Attacks . | . . . Combat Hostiles . | . . . Follow-up Attacks . | . . . Damage Inflicted 1029 | . 382 647 Guns 764 | . 381 383 Cannons 264 | . . 264 Explosions . | . . . Melee . | . . . Ramming 1 | . 1 . Kinetic 364 | . 201 163 Thermal 484 | . . 484 Explosive . | . . . Electromagnetic 180 | . 180 . Impact . | . . . Slashing . | . . . Piercing . | . . . Highest Corruption 2 | . 2 1 Average Corruption 1 | . 2 1 Corruption Purged . | . . . Corruption Blocked . | . . . Effects 1 | . . 1 Message Errors 1 | . . 1 Overload Shots . | . . . Overflow Damage . | . . . Projectiles . | . . . Explosions . | . . . Melee . | . . . Knockbacks . | . . . Impact . | . . . Kinetic . | . . . Secondary . | . . . Self-Inflicted Damage . | . . . Shots . | . . . Rammed 1 | . 1 . Targets Rammed 1 | . 1 . Kicked . | . . . Crushed . | . . . Highest Temperature 654 | . 81 654 Average Temperature 146 | . 53 235 Received Heat Transfer 471 | . 99 372 Effects 14 | . . 14 Energy Bleed 1 | . . 1 Interference 2 | . . 2 Short Circuit 1 | . . 1 Damage (minor) 1 | . . 1 Damage (major) 8 | . . 8 Damage (core) 1 | . . 1 Siege Activations . | . . . Robots Corrupted . | . . . Combat Hostiles . | . . . Parts Fried . | . . . Impact Corruptions . | . . . Robots Melted . | . . . Combat Hostiles . | . . . Parts Melted 1 | . . 1 Heat Transferred 981 | . . 981 Parts Sabotaged . | . . . Parts Stolen . | . . . Parts Stripped . | . . . Power Chain Reactions . | . . . Alert | -11 -10 -9 ------- Run | Yrd Mat Mat Peak Influence 286 | . 177 286 Initial 74 | . . 74 Average 110 | . 88 148 Maximum Alert Level 1 | . . 1 Low Security (%) 88 | 100 100 76 Level 1 11 | . . 23 Level 2 . | . . . Level 3 . | . . . Level 4 . | . . . Level 5 . | . . . High Security . | . . . Max Security . | . . . Squads Dispatched 2 | . . 2 Investigation . | . . . Extermination . | . . . Reinforcement 2 | . . 2 Assault . | . . . Garrison . | . . . Intercept . | . . . Searches Triggered . | . . . Construction Impeded . | . . . Haulers Reinforced . | . . . Active Scanning Responses . | . . . Cargo Convoy Interrupts . | . . . Stealth | -11 -10 -9 --------- Run | Yrd Mat Mat Distress Signals 5 | . 1 4 Communications Jammed . | . . . Distress Signals . | . . . Times Spotted 25 | . 9 16 Peak Tracking Total 8 | . 4 8 Tactical Retreats 2 | . 1 1 Traps | -11 -10 -9 ------- Run | Yrd Mat Mat Traps Triggered 2 | . 1 1 Indirectly . | . . . Trap Hack Attempts . | . . . Triggered . | . . . Disarmed . | . . . Reprogrammed . | . . . Reused . | . . . Traps Extracted . | . . . Installed . | . . . Triggered . | . . . Machines | -11 -10 -9 ---------- Run | Yrd Mat Mat Machines Disabled . | . . . Max in Single Turn . | . . . Machines Repaired . | . . . Machines Dismantled . | . . . Machines Sabotaged . | . . . Overloaded Fab Kills . | . . . Hacking | -11 -10 -9 --------- Run | Yrd Mat Mat Machines Accessed 1 | . . 1 Terminals 1 | . . 1 Fabricators . | . . . Repair Stations . | . . . Recycling Units . | . . . Scanalyzers . | . . . Garrison Access . | . . . Total Hacks 2 | . . 2 Successful . | . . . Failed 2 | . . 2 Catastrophic . | . . . Database Lockouts . | . . . Manual 3 | . 1 2 Terminals 2 | . . 2 Fabricators . | . . . Repair Stations . | . . . Recycling Units . | . . . Scanalyzers . | . . . Garrison Access . | . . . Terminal Hacks . | . . . Fabricator Hacks . | . . . Repair Station Hacks . | . . . Recycling Unit Hacks . | . . . Scanalyzer . | . . . Garrison Access Hacks . | . . . Unauthorized Hacks . | . . . Terminals . | . . . Fabricators . | . . . Repair Stations . | . . . Recycling Units . | . . . Scanalyzers . | . . . Garrison Access . | . . . Data Cores Recovered . | . . . Used . | . . . Hacking Detections 1 | . . 1 Full Trace Events . | . . . Feedback Events . | . . . Feedback Blocked . | . . . Robot Schematics Acquired . | . . . Robots Built . | . . . Authchips . | . . . Time . | . . . Total Robot Build Rating . | . . . Part Schematics Acquired . | . . . Parts Built . | . . . Authchips . | . . . Time . | . . . Total Part Build Rating . | . . . Parts Repaired . | . . . Time . | . . . Parts Recycled . | . . . Recycled Matter . | . . . Retrieved Matter . | . . . Retrieved Components . | . . . Parts Scanalyzed . | . . . Part Schematics Acquired . | . . . Parts Damaged . | . . . Bothacking | -11 -10 -9 ------------ Run | Yrd Mat Mat Used RIF Installer . | . . . Robots Hacked . | . . . Non-combat . | . . . Combat . | . . . Robot Hacks Applied . | . . . Relay Couplers Released . | . . . Fabnet Peak Effective % . | . . . Robots Rewired . | . . . Allies Hacked . | . . . Hacks Repelled . | . . . Allies | -11 -10 -9 -------- Run | Yrd Mat Mat Total Allies . | . . . Largest Group . | . . . Highest-Rated Group . | . . . Highest-Rated Ally . | . . . Total Orders . | . . . Ally Attacks . | . . . Total Damage . | . . . Kills . | . . . Allies Corrupted . | . . . Allies Melted . | . . . Intel | -11 -10 -9 ------- Run | Yrd Mat Mat Robot Analysis Total . | . . . Derelict Logs Recovered . | . . . Drone Launches . | . . . Drone Recoveries . | . . . Exploration | -11 -10 -9 ------------- Run | Yrd Mat Mat Turns Passed 673 | 62 277 334 Spaces Moved 398 | 47 159 192 Core 14 | 13 . 1 Treads . | . . . Legs 119 | 34 85 . Wheels . | . . . Hover . | . . . Flight 265 | . 74 191 Fastest Speed 37 | 50 117 37 Average Speed 113 | 108 119 110 Slowest Speed 210 | 120 210 197 Overloaded Moves . | . . . Propulsion Burnouts . | . . . Robots Hopped 1 | . . 1 Cave-ins Triggered . | . . . Exploration Rate (%) 18 | 3 31 22 Regions Visited 2 Branch Regions . Pre-discovered Areas . | . . . Known Exits Taken . | . . . Unknown Exits Taken 2 | 1 1 . Scrap Searched . | . . . Spaces Dug . | . . . Terrain Destroyed . | . . . Melee . | . . . Projectile . | . . . AOE . | . . . Terrain Rammed . | . . . Walls Destroyed . | . . . Machines Disabled . | . . . Actions | -11 -10 -9 --------- Run | Yrd Mat Mat Total 502 | 58 198 246 Wait 8 | . 2 6 Move 394 | 46 158 190 Hop 1 | . . 1 Pick Up 17 | 7 5 5 Fast Attach . | . . . Attach 13 | 5 2 6 Detach . | . . . Swap 7 | . 5 2 Drop 1 | . 1 . Fire 60 | . 24 36 Melee . | . . . Ram 1 | . 1 . Kick . | . . . Crush . | . . . Escape Stasis . | . . . Rewire . | . . . Trap . | . . . Miscellaneous . | . . . Route ------- -11/Scrapyard -10/Materials (discovered 2 exits: *Mat / [*Min]) -9/Materials History --------- Turn | Location | Event 14 | -11/Scrapyard | Discovered new exit (range 15) 63 | -11/Scrapyard | Entered Materials 157 | -10/Materials | Discovered new exit (range 14) 250 | -10/Materials | Destroyed 7 combat bots 312 | -10/Materials | Build established: Mutant 332 | -10/Materials | Discovered new exit (range 4) 340 | -10/Materials | Entered another Materials area 340 | -9/Materials | Evolved 2 slots: Propulsion x1, Utility x1 663 | -9/Materials | Core integrity fell below 50% 674 | -9/Materials | Self-destructed Last Messages --------------- Overheating: Core damaged (-72). Overheating: Imp. Flight Unit damaged (-4). Overheating: Adv. Beam Cannon damaged (-9). R-06 Scavenger collects Ion Engine. K-01 Serf collects debris. R-06 Scavenger destroyed. Overheating: Transport Network Coupler damaged (-7). Overheating: Broken Adv. Beam Cannon damaged (-6). Overheating: Imp. Flight Unit damaged (-2). Overheating: Sml. Storage Unit damaged (-12). K-01 Serf collects debris. Broken Adv. Beam Cannon destroyed. Sml. Storage Unit destroyed. Adv. Beam Cannon destroyed. K-01 Serf collects debris. Imp. Flight Unit destroyed. Datajack destroyed. Y-45 Defender heat short circuits Beam Rifle. Map ----- +----------------------------------------------------+ | ?????????????????????????????????????????????????? | | ?????????????????????????????????????????????????? | | ?????????????????????????????????????????????????? | | ?????????????????????????????????????????????????? | | ?????????????????????????????????????????????????? | | ?????????????????????????????????????????????????? | | ?????????????????????????????????????????????????? | | ?????????????????????????????????????????????????? | | ?????????????????????????????????????????????????? | | ?????????????????????????????????????????????????? | | ?????????????????????????????????????????????????? | | ?????????????????????????????????????????????????? | | ?????????????????????????????????????????????????? | | ?????????????????????????????????????????????????? | | ?????????????????????????????????????????????????? | | ?????????????????????????????????????????????????? | | ?????????????????????????????????????????????????? | | ?????????????????????????????????????????????????? | | ?????????????????????????????????????????????????? | | ?????????????????????????????????????????????????? | | ?????????????????? ?###########??????????????????? | | ?????????????????? ?# #??????????????????? | | ?????????????????# ?# """ T #??????????????????? | | ?????????????????# ?# """ #??????????????????? | | ?????????????????# ?# """* #??????????????????? | | ?????????????????# ?# *==@! #??????????????????? | | ?????????????????# ?# =Y%%% #??????????????????? | | ?????????????????# ##=%k%g![ #??????????????????? | | ?????????????????# #####g######??????????????????? | | ???????????????### [ gw #????????????????????? | | ???????? / #????????????????????? | | ???????????# #####!=" #????????????????????? | | ????????????????#"%!T #????????????????????? | | ????????????????#T= " #????????????????????? | | ????????????????#" #????????????????????? | | #? ########### #????????????????????? | | #? """ #????????????????????? | | #? """ #????????????????????? | | #? ] """ #????????????????????? | | #? ###+##^ ########?????????????? | | #???????????# ????????????? | | ?########???# #### ????????????? | | ?# #???# #??# ????????????? | | ## #???# ####+#############???????????????? | | # #???# # #???????????????????????? | | # """ #???# # =[ #???????????????????????? | | + """ #???# # [[ #???????????????????????? | | # """ #???# # [ #???????????????????????? | | ########???# # #???????????????????????? | | #?????# # """ [ #???????????????????????? | +----------------------------------------------------+ Best States ------------- Heat Dissipation 28 Energy Generation 12 Energy Capacity 265 Matter Stores 300 Matter Capacity 300 Sight Range 16 Terrain Scan Density 10 Evasion (%) 62 Item Schematics ----------------- None Robot Schematics ------------------ None Fabricated ------------ Nothing Alien Tech Used ----------------- None Achievements -------------- None Challenges ------------ None Game ------ Seed GuidedPrecisionAutogun Manual? 0 Play Time 00:08:40 Cumulative 7.5 hours Start 2024.03.15 @ 18:30:30 End 2024.03.15 @ 18:37:26 Sessions 1 Manual Loads 0 Difficulty Rogue Special Mode None Game No. 19 Rogue 17 Adventurer 2 Explorer 0 Win Type - Total 0 Types 0/0/0/0/0/0/0/0/0 Lore% 12 Gallery% 20 Achievement% 13 Wizard Run 0 Options --------- Layout 1 ASCII 0 Keyboard 0 Movement Arrows Keybinds 0 Fullscreen 1 Font 24/Smallcaps Map View 50x35 Zoom Use 0% Tactical HUD 0 Map Filters NONE Filters NONE Steam 1 RUN: 64d0350f-6180-4200-9a2e-1b1abf44bb0c